bitfinex/quotes_BTCUSD_20250826
["timestamp","ask_amount","ask_price","bid_price","bid_amount"]
[1756178555536,0.00048356,110070.0,110060.0,0.53113854]
[1756178555758,0.00034356,110070.0,110060.0,0.79983854]
[1756178556640,0.00034356,110070.0,110060.0,1.16149402]
[1756178557080,0.00034356,110070.0,110060.0,0.89399402]
[1756178557304,0.00034356,110070.0,110060.0,0.89279402]
[1756178558609,0.00034356,110070.0,110060.0,0.37229854]
[1756178558825,0.00034356,110070.0,110060.0,0.53113854]
[1756178560744,0.00034356,110070.0,110060.0,1.04279402]
[1756178563563,0.00034356,110070.0,110060.0,0.88395402]
[1756178563793,0.00034356,110070.0,110060.0,1.04247402]
[1756178564280,0.00034356,110070.0,110060.0,1.04239402]
[1756178564766,0.00034356,110070.0,110060.0,0.68073854]
[1756178564985,0.00034356,110070.0,110060.0,0.67776854]
[1756178565203,0.13568794,110090.0,110070.0,0.18170255]
[1756178565426,0.18168636,110080.0,110070.0,0.27316457]
[1756178565655,0.19031779,110080.0,110070.0,0.27316457]
[1756178565863,0.19031779,110080.0,110070.0,0.43168457]
[1756178566083,0.19031779,110080.0,110070.0,0.27316457]
[1756178566270,0.19031779,110080.0,110070.0,0.43164457]
[1756178567211,0.19031779,110080.0,110070.0,0.27316457]
[1756178567390,0.19031779,110080.0,110070.0,0.43160457]
[1756178567781,0.00863143,110080.0,110070.0,0.43160457]
[1756178568764,0.00863143,110080.0,110070.0,0.43457457]
[1756178568977,0.00863143,110080.0,110070.0,0.43659457]
[1756178569202,0.00849143,110080.0,110070.0,0.43659457]
[1756178569910,0.00863143,110080.0,110070.0,0.43457457]
[1756178570355,0.00863143,110080.0,110070.0,0.43659457]
[1756178570613,0.00864965,110080.0,110070.0,0.43659457]
[1756178571044,0.19033569,110080.0,110070.0,0.27613457]
[1756178571259,0.19033569,110080.0,110070.0,0.43144457]
[1756178571690,0.19033569,110080.0,110070.0,0.24962202]
[1756178572375,0.18170255,110070.0,110060.0,0.29216516]
[1756178572603,0.1903522,110070.0,110060.0,0.26856746]
[1756178572834,0.1904322,110070.0,110060.0,0.26856746]
[1756178573054,0.1903522,110070.0,110060.0,0.26856746]
[1756178573294,0.1903522,110070.0,110060.0,0.04056746]
[1756178573520,0.1903522,110070.0,110060.0,0.19880746]
[1756178573777,0.1903522,110070.0,110060.0,0.34494906]
[1756178573778,0.00850965,110070.0,110060.0,0.34494906]
[1756178574214,0.00850965,110070.0,110060.0,0.43641108]
[1756178574427,0.00850965,110070.0,110060.0,0.54973523]
[1756178579631,0.00850965,110070.0,110060.0,0.39149523]
[1756178579833,0.00850965,110070.0,110060.0,0.54957523]
[1756178580063,0.18168772,110080.0,110070.0,0.18170255]
[1756178580269,0.18170255,110070.0,110060.0,0.13148918]
[1756178580478,0.18184255,110070.0,110060.0,0.47128824]
[1756178580678,0.19036282,110070.0,110060.0,0.13148918]
[1756178580843,0.19036282,110070.0,110060.0,0.28956918]
[1756178581049,0.19036282,110070.0,110060.0,0.47128824]
[1756178581255,0.19036282,110070.0,110060.0,0.47649824]
[1756178581876,0.19036282,110070.0,110060.0,0.47441824]
[1756178582291,0.19036282,110070.0,110060.0,0.47128824]
[1756178582620,0.19022282,110070.0,110060.0,0.47649824]
[1756178582832,0.19036282,110070.0,110060.0,0.47649824]
[1756178583259,0.00852027,110070.0,110060.0,0.47649824]
[1756178585950,0.00852027,110070.0,110060.0,0.47328531]
[1756178586424,0.00852027,110070.0,110060.0,0.5465823]
[1756178586639,0.00047834,110090.0,110080.0,0.18168604]
[1756178586857,0.00899467,110090.0,110080.0,0.33976604]
[1756178587071,0.00899467,110090.0,110080.0,0.34184604]
[1756178587311,0.00899467,110090.0,110080.0,0.34497604]
[1756178588826,0.00899416,110090.0,110080.0,0.34497604]
[1756178589215,0.00899416,110090.0,110080.0,0.32865604]
[1756178589612,0.1908037,110090.0,110080.0,0.15808]
[1756178591664,0.1908037,110090.0,110080.0,0.33976604]
[1756178591814,0.1908037,110090.0,110080.0,0.34289604]
[1756178592029,0.00899416,110090.0,110080.0,0.34497604]
[1756178593271,0.00047834,110090.0,110080.0,0.34497604]
[1756178595347,0.00047834,110090.0,110080.0,0.43643806]
[1756178599641,0.00047834,110090.0,110080.0,0.27835806]
[1756178599873,0.18214788,110090.0,110080.0,0.43639806]
[1756178600215,0.00047834,110090.0,110080.0,0.43639806]
[1756178603610,0.00047834,110090.0,110080.0,0.27835806]
[1756178603870,0.00047834,110090.0,110080.0,0.43639806]
[1756178606265,0.00047834,110090.0,110080.0,0.43635806]
[1756178608372,0.00047834,110090.0,110080.0,0.44620464]
[1756178610455,0.00047834,110090.0,110080.0,0.43635806]
[1756178611973,0.0063964,110100.0,110090.0,0.18166954]
[1756178612243,0.21810642,110110.0,110090.0,0.18382954]
[1756178612458,0.22676198,110110.0,110100.0,0.158]
[1756178612683,0.22690198,110110.0,110100.0,0.158]
[1756178613131,0.23693764,110110.0,110100.0,0.158]
[1756178613335,0.23693764,110110.0,110100.0,0.16121]
[1756178614969,0.23693764,110110.0,110100.0,0.16117]
[1756178615377,0.23693764,110110.0,110100.0,0.34282304]
[1756178615598,0.23693764,110110.0,110100.0,0.34498304]
[1756178615816,0.23679764,110110.0,110100.0,0.34498304]
[1756178616182,0.23693764,110110.0,110100.0,0.34498304]
[1756178616412,0.22676198,110110.0,110100.0,0.34498304]
[1756178617406,0.21824984,110110.0,110100.0,0.34498304]
[1756178617604,0.21768723,110110.0,110100.0,0.34498304]
[1756178618029,0.03597259,110110.0,110100.0,0.18702304]
[1756178618251,0.00866259,110110.0,110100.0,0.34498304]
[1756178618846,0.00014342,110110.0,110100.0,0.34498304]
[1756178621505,0.00014342,110110.0,110100.0,0.26032003]
[1756178621714,0.00014342,110110.0,110100.0,0.41824003]
[1756178621938,0.00014342,110110.0,110100.0,0.43521763]
[1756178622162,0.00014342,110110.0,110100.0,0.41824003]
[1756178623429,0.00014342,110110.0,110100.0,0.26032003]
[1756178623643,0.00014342,110110.0,110100.0,0.41824003]
[1756178626980,0.00014342,110110.0,110100.0,0.41820003]
[1756178630774,0.00014342,110110.0,110100.0,0.26032003]
[1756178630932,0.00014342,110110.0,110100.0,0.41816003]
[1756178634246,0.00014342,110110.0,110100.0,0.41812003]
[1756178635734,0.00014342,110110.0,110100.0,0.26032003]
[1756178635940,0.00014342,110110.0,110100.0,0.41812003]
[1756178637236,0.00014342,110110.0,110100.0,0.26032003]
[1756178637449,0.20781044,110130.0,110100.0,0.41812003]
[1756178637687,0.18165026,110120.0,110100.0,0.41812003]
[1756178637914,0.18165026,110120.0,110110.0,0.00307]
[1756178638163,0.18179026,110120.0,110110.0,0.00307]
[1756178638602,0.18165304,110100.0,110090.0,0.027307]
[1756178638818,0.18166954,110090.0,110080.0,0.27621754]
[1756178638999,0.18180954,110090.0,110080.0,0.43412148]
[1756178639453,0.18180954,110090.0,110080.0,0.43607148]
[1756178639980,0.19198269,110090.0,110080.0,0.34460946]
[1756178640229,0.19198269,110090.0,110080.0,0.34265946]
[1756178640432,0.01031315,110090.0,110080.0,0.34265946]
[1756178640827,0.01031315,110090.0,110080.0,0.34460946]
[1756178641249,0.19198269,110090.0,110080.0,0.34460946]
[1756178641868,0.18180954,110090.0,110080.0,0.34460946]
[1756178642277,0.18165304,110100.0,110080.0,0.34460946]
[1756178644362,0.18166954,110090.0,110080.0,0.34460946]
[1756178645443,0.19165902,110100.0,110090.0,0.18166954]
[1756178645664,0.18165304,110100.0,110090.0,0.18668954]
[1756178646086,0.18179304,110100.0,110090.0,0.18668954]
[1756178646488,0.18165304,110100.0,110090.0,0.18668954]
[1756178646706,0.22805882,110110.0,110090.0,0.18668954]
[1756178646908,0.20925936,110110.0,110100.0,0.15772]
[1756178647110,0.20088682,110110.0,110100.0,0.15772]
[1756178647317,0.20088682,110110.0,110100.0,0.16079]
[1756178647746,0.20088682,110110.0,110100.0,0.15772]
[1756178650125,0.20088682,110110.0,110100.0,0.16079]
[1756178650994,0.20088682,110110.0,110100.0,0.16274]
[1756178651407,0.20088682,110110.0,110100.0,0.34439304]
[1756178651631,0.20074682,110110.0,110100.0,0.34439304]
[1756178651862,0.191665,110110.0,110100.0,0.34439304]
[1756178652062,0.21804226,110120.0,110100.0,0.34439304]
[1756178652284,0.22655359,110120.0,110100.0,0.34132304]
[1756178652483,0.56655359,110120.0,110110.0,0.00307]
[1756178652700,0.56655359,110120.0,110110.0,0.00502]
[1756178652908,0.56669359,110120.0,110110.0,0.00502]
[1756178653331,0.18163654,110110.0,110100.0,0.18472304]
[1756178653553,0.18163654,110110.0,110100.0,0.34435304]
[1756178654176,0.19192167,110110.0,110100.0,0.34435304]
[1756178654592,0.19206167,110110.0,110100.0,0.1627]
[1756178654809,0.19192167,110110.0,110100.0,0.1627]
[1756178655011,0.19192167,110110.0,110100.0,0.34435304]
[1756178655213,0.19192167,110110.0,110100.0,0.32803304]
[1756178655516,0.19192167,110110.0,110100.0,0.32998304]
[1756178657412,0.19192167,110110.0,110100.0,0.33305304]
[1756178657627,0.19395167,110110.0,110100.0,0.34431304]
[1756178657976,0.19395167,110110.0,110100.0,0.34124304]
[1756178658180,0.19395167,110110.0,110100.0,0.35822064]
[1756178658384,0.19395167,110110.0,110100.0,0.34124304]
[1756178659314,0.19395167,110110.0,110100.0,0.34431304]
[1756178659952,0.18163654,110110.0,110100.0,0.34431304]
[1756178660491,0.55804226,110120.0,110100.0,0.34431304]
[1756178660701,0.22655598,110120.0,110100.0,0.34431304]
[1756178661143,0.22655591,110120.0,110100.0,0.34431304]
[1756178661353,0.23979975,110120.0,110100.0,0.34431304]
[1756178661558,0.23679975,110120.0,110100.0,0.34431304]
[1756178664199,0.23679975,110120.0,110110.0,0.18470654]
[1756178664438,0.23680203,110120.0,110110.0,0.34421654]
[1756178664645,0.04607077,110120.0,110110.0,0.34421654]
[1756178664884,0.03755484,110120.0,110110.0,0.34421654]
[1756178665096,0.19389389,110120.0,110110.0,0.34421654]
[1756178667436,0.19186389,110120.0,110110.0,0.34421654]
[1756178667651,0.18358005,110120.0,110110.0,0.18665654]
[1756178667873,0.18162005,110120.0,110110.0,0.34421654]
[1756178668760,0.19165825,110120.0,110110.0,0.34421654]
[1756178668943,0.19361825,110120.0,110110.0,0.34421654]
[1756178669120,0.22092525,110120.0,110110.0,0.34421654]
[1756178669734,0.21896525,110120.0,110110.0,0.34421654]
[1756178669943,0.20892705,110120.0,110110.0,0.34421654]
[1756178671370,0.21088705,110120.0,110110.0,0.34421654]
[1756178671935,0.20892705,110120.0,110110.0,0.34421654]
[1756178672135,0.21598603,110120.0,110110.0,0.34421654]
[1756178672360,0.21794603,110120.0,110110.0,0.34421654]
[1756178672543,0.20892705,110120.0,110110.0,0.34421654]
[1756178672764,0.18162005,110120.0,110110.0,0.34421654]
[1756178675379,0.19563483,110130.0,110120.0,0.18162005]
[1756178675580,0.20415094,110130.0,110120.0,0.1595]
[1756178675836,0.20611094,110130.0,110120.0,0.34408005]
[1756178676176,0.19759483,110130.0,110120.0,0.34408005]
[1756178677411,0.22489983,110130.0,110120.0,0.00502]
[1756178677610,0.22489983,110130.0,110120.0,0.16246]
[1756178678145,0.22489983,110130.0,110120.0,0.34408005]
[1756178680021,0.22489983,110130.0,110120.0,0.18664005]
[1756178680221,0.22489983,110130.0,110120.0,0.34404005]
[1756178681343,0.22293983,110130.0,110120.0,0.34404005]
[1756178681521,0.22489983,110130.0,110120.0,0.34404005]
[1756178682627,0.029265,110130.0,110120.0,0.34404005]
[1756178682776,0.21087579,110130.0,110120.0,0.34404005]
[1756178683393,0.20891579,110130.0,110120.0,0.34404005]
[1756178684011,0.18161079,110130.0,110120.0,0.34404005]
[1756178684818,0.18837764,110130.0,110120.0,0.34404005]
[1756178685223,0.19033764,110130.0,110120.0,0.34104005]
[1756178686099,0.19033764,110130.0,110120.0,0.34400005]
[1756178686634,0.19033764,110130.0,110120.0,0.00206]
[1756178686840,0.19033764,110130.0,110120.0,0.15736]
[1756178687260,0.19033764,110130.0,110120.0,0.33898005]
[1756178688328,0.19033764,110130.0,110120.0,0.34104005]
[1756178689595,0.19033764,110130.0,110120.0,0.00206]
[1756178689841,0.19033764,110130.0,110120.0,0.34100005]
[1756178690274,0.19033764,110130.0,110120.0,0.18368005]
[1756178690490,0.19342764,110130.0,110120.0,0.15934]
[1756178690698,0.19342764,110130.0,110120.0,0.1763176]
[1756178690955,0.19342764,110130.0,110120.0,0.15934]
[1756178691592,0.19033764,110130.0,110120.0,0.34096005]
[1756178692448,0.19033764,110130.0,110120.0,0.00206]
[1756178692650,0.19033764,110130.0,110120.0,0.34096005]
[1756178693825,0.18837764,110130.0,110120.0,0.34392005]
[1756178694262,0.19033764,110130.0,110120.0,0.34392005]
[1756178694467,0.18837764,110130.0,110120.0,0.34392005]
[1756178695405,0.19033764,110130.0,110120.0,0.34392005]
[1756178695846,0.18837764,110130.0,110120.0,0.34392005]
[1756178696112,0.18837764,110130.0,110120.0,0.36089765]
[1756178696303,0.18837764,110130.0,110120.0,0.34392005]
[1756178698871,0.19040764,110130.0,110120.0,0.18664005]
[1756178699091,0.19040764,110130.0,110120.0,0.34088005]
[1756178699323,0.18162005,110120.0,110110.0,0.25446348]
[1756178699531,0.18162005,110120.0,110110.0,0.5052255]
[1756178699746,0.19132764,110130.0,110110.0,0.5052255]
[1756178700347,0.18372005,110120.0,110110.0,0.07194]
[1756178700554,0.18372005,110120.0,110110.0,0.41073654]
[1756178700884,0.18372005,110120.0,110110.0,0.41372654]
[1756178701098,0.18163654,110110.0,110100.0,0.2991106]
[1756178701281,0.18373654,110110.0,110100.0,0.4583706]
[1756178701943,0.18668654,110110.0,110100.0,0.27162756]
[1756178702418,0.18668654,110110.0,110100.0,0.11446756]
[1756178702632,0.18373654,110110.0,110100.0,0.27162756]
[1756178702811,0.18373654,110110.0,110100.0,0.27372756]
[1756178703378,0.18373654,110110.0,110100.0,0.4553806]
[1756178704010,0.18373654,110110.0,110100.0,0.4583706]
[1756178704628,0.18163654,110110.0,110100.0,0.4583706]
[1756178707038,0.18373654,110110.0,110100.0,0.11656756]
[1756178707244,0.18373654,110110.0,110100.0,0.27368756]
[1756178707872,0.18373654,110110.0,110100.0,0.11656756]
[1756178708096,0.18373654,110110.0,110100.0,0.11446756]
[1756178708312,0.18165304,110100.0,110090.0,0.06984]
[1756178708523,0.18375304,110100.0,110090.0,0.22706342]
[1756178708667,0.18375304,110100.0,110090.0,0.06998342]
[1756178709098,0.18670304,110100.0,110090.0,0.22706342]
[1756178710680,0.18670304,110100.0,110090.0,0.06998342]
[1756178710889,0.18670304,110100.0,110090.0,0.00014342]
[1756178711105,0.21501504,110100.0,110090.0,0.15722342]
[1756178711525,0.21401504,110100.0,110090.0,0.15722342]
[1756178711755,0.21501504,110100.0,110090.0,0.15722342]
[1756178712791,0.21501504,110100.0,110090.0,0.00014342]
[1756178716338,0.55501504,110100.0,110090.0,0.00014342]
[1756178717735,0.71201504,110100.0,110090.0,0.00014342]
[1756178718272,0.55501504,110100.0,110090.0,0.00014342]
[1756178718477,0.71201504,110100.0,110090.0,0.00014342]
[1756178722697,0.55501504,110100.0,110090.0,0.00014342]
[1756178722979,0.71197504,110100.0,110090.0,0.00014342]
[1756178724009,0.71097504,110100.0,110090.0,0.00014342]
[1756178724333,0.81193061,110100.0,110090.0,0.00014342]
[1756178724533,0.81293061,110100.0,110090.0,0.00014342]
[1756178725332,0.82991958,110100.0,110090.0,0.00014342]
[1756178726622,0.82987958,110100.0,110090.0,0.00014342]
[1756178727335,0.84945658,110100.0,110090.0,0.00014342]
[1756178727787,0.69253658,110100.0,110090.0,0.00014342]
[1756178727987,0.68958658,110100.0,110090.0,0.00014342]
[1756178728393,0.84952658,110100.0,110090.0,0.00014342]
[1756178728799,0.69260658,110100.0,110090.0,0.00014342]
[1756178729187,0.84952658,110100.0,110090.0,0.00014342]
[1756178729416,0.69260658,110100.0,110090.0,0.00014342]
[1756178729565,0.84952658,110100.0,110090.0,0.00014342]
[1756178729930,0.82018615,110100.0,110090.0,0.00014342]
[1756178730145,0.820207,110100.0,110090.0,0.00014342]
[1756178730985,0.823197,110100.0,110090.0,0.00014342]
[1756178731198,0.820207,110100.0,110090.0,0.00014342]
[1756178731668,0.83975348,110100.0,110090.0,0.00014342]
[1756178735192,0.83975348,110100.0,110090.0,0.00230342]
[1756178735404,0.68089348,110100.0,110090.0,0.00553342]
[1756178735596,0.83773348,110100.0,110090.0,0.00553342]
[1756178735862,0.83971348,110100.0,110090.0,0.00553342]
[1756178736538,0.83776042,110100.0,110090.0,0.00553342]
[1756178736923,0.83974042,110100.0,110090.0,0.00014342]
[1756178737478,0.5894584,110100.0,110090.0,0.00553342]
[1756178737608,0.7462984,110100.0,110090.0,0.00553342]
[1756178738317,0.7482784,110100.0,110090.0,0.00553342]
[1756178739469,0.72274809,110100.0,110090.0,0.00553342]
[1756178739680,0.74830501,110100.0,110090.0,0.00553342]
[1756178739842,0.77283271,110100.0,110090.0,0.00553342]
[1756178740253,0.76218721,110100.0,110090.0,0.00553342]
[1756178740466,0.77922883,110100.0,110090.0,0.00553342]
[1756178741157,0.77922883,110100.0,110090.0,0.00014342]
[1756178741363,0.78221883,110100.0,110090.0,0.00014342]
[1756178741746,0.77922883,110100.0,110090.0,0.00014342]
[1756178742815,0.77923101,110100.0,110090.0,0.00014342]
[1756178743053,0.62041101,110100.0,110090.0,0.00553342]
[1756178743259,0.04825225,110100.0,110090.0,0.18720296]
[1756178743478,0.03121063,110100.0,110090.0,0.18720296]
[1756178743902,0.01052206,110100.0,110090.0,0.18720296]
[1756178744115,0.01052206,110100.0,110090.0,0.34396296]
[1756178744749,0.00952206,110100.0,110090.0,0.34396296]
[1756178745176,0.00852206,110100.0,110090.0,0.34396296]
[1756178745392,0.00852206,110100.0,110090.0,0.79604279]
[1756178745611,0.00852206,110100.0,110090.0,0.43542498]
[1756178746252,0.18162005,110120.0,110110.0,0.18163654]
[1756178746526,0.02553979,110120.0,110110.0,0.18702654]
[1756178746734,0.02553979,110120.0,110110.0,0.34374654]
[1756178746735,0.00851326,110120.0,110110.0,0.34374654]
[1756178748039,0.00951326,110120.0,110110.0,0.34374654]
[1756178748456,0.01051326,110120.0,110110.0,0.34374654]
[1756178749226,0.01050001,110120.0,110110.0,0.18702654]
[1756178749446,0.002,110120.0,110110.0,0.18702654]
[1756178749652,0.002,110120.0,110110.0,0.34370654]
[1756178749868,0.18362005,110120.0,110110.0,0.34370654]
[1756178752540,0.18362005,110120.0,110110.0,0.18702654]
[1756178752753,0.18560005,110120.0,110110.0,0.15664]
[1756178752963,0.18163654,110110.0,110100.0,0.25476304]
[1756178753185,0.18163654,110110.0,110100.0,0.50502506]
[1756178754278,0.18262005,110120.0,110100.0,0.50502506]
[1756178754492,0.18262005,110120.0,110100.0,0.50179506]
[1756178754706,0.18162005,110120.0,110100.0,0.50179506]
[1756178754919,0.18162005,110120.0,110110.0,0.00323]
[1756178755129,0.18360005,110120.0,110110.0,0.00539]
[1756178755560,0.18162005,110120.0,110110.0,0.00539]
[1756178755796,0.18362005,110120.0,110110.0,0.00539]
[1756178755996,0.18459005,110120.0,110110.0,0.16199]
[1756178756198,0.18359005,110120.0,110110.0,0.16199]
[1756178756626,0.18459005,110120.0,110110.0,0.16199]
[1756178757263,0.18559005,110120.0,110110.0,0.16199]
[1756178758132,0.18163654,110110.0,110100.0,0.59674812]
[1756178758360,0.18163654,110110.0,110100.0,0.75538003]
[1756178758529,0.18163654,110110.0,110100.0,0.59882003]
[1756178758743,0.18163654,110110.0,110100.0,0.75538003]
[1756178760254,0.18162005,110120.0,110100.0,0.75538003]
[1756178760462,0.18162005,110120.0,110110.0,0.18485654]
[1756178760673,0.18262005,110120.0,110110.0,0.18692654]
[1756178760897,0.18162005,110120.0,110110.0,0.18692654]
[1756178761764,0.18262005,110120.0,110110.0,0.18692654]
[1756178761967,0.18162005,110120.0,110110.0,0.18692654]
[1756178762175,0.18262005,110120.0,110110.0,0.18692654]
[1756178762389,0.002,110120.0,110110.0,0.18692654]
[1756178762637,0.18560005,110120.0,110110.0,0.00529]
[1756178762848,0.18163654,110110.0,110100.0,0.33858]
[1756178763065,0.18362005,110120.0,110100.0,0.68204304]
[1756178763275,0.18362005,110120.0,110100.0,0.67882304]
[1756178763510,0.18362005,110120.0,110110.0,0.00322]
[1756178763717,0.18163654,110110.0,110100.0,0.67675304]
[1756178763901,0.18163654,110110.0,110100.0,0.68204304]
[1756178764560,0.18163654,110110.0,110100.0,0.68200304]
[1756178768483,0.18163654,110110.0,110100.0,0.41330304]
[1756178769510,0.18162005,110120.0,110100.0,0.41330304]
[1756178770114,0.19012292,110120.0,110100.0,0.41330304]
[1756178771079,0.19112292,110120.0,110110.0,0.00322]
[1756178771277,0.19112292,110120.0,110110.0,0.00512056]
[1756178771723,0.19212292,110120.0,110110.0,0.00512056]
[1756178772141,0.19112292,110120.0,110110.0,0.00512056]
[1756178772351,0.19212292,110120.0,110110.0,0.00512056]
[1756178772567,0.19212292,110120.0,110110.0,0.1867571]
[1756178773265,0.19112292,110120.0,110110.0,0.1867571]
[1756178773757,0.19212292,110120.0,110110.0,0.1867571]
[1756178775845,0.01050287,110120.0,110110.0,0.1867571]
[1756178776754,0.01052356,110120.0,110110.0,0.1867571]
[1756178777205,0.01052361,110120.0,110110.0,0.1867571]
[1756178779690,0.01052361,110120.0,110110.0,0.27821912]
[1756178780067,0.002,110120.0,110110.0,0.43453912]
[1756178780244,0.002,110120.0,110110.0,0.70323912]
[1756178780738,0.001,110120.0,110110.0,0.54691912]
[1756178780941,0.001,110120.0,110110.0,0.70323912]
[1756178781088,0.001,110120.0,110110.0,0.70597212]
[1756178781511,0.19845549,110140.0,110130.0,0.18160355]
[1756178781716,0.20896336,110140.0,110130.0,0.34317355]
[1756178782293,0.19977728,110140.0,110130.0,0.18689355]
[1756178782520,0.19977728,110140.0,110130.0,0.15628]
[1756178782742,0.19977728,110140.0,110120.0,0.1848258]
[1756178782956,0.19977728,110140.0,110130.0,0.15628]
[1756178786485,0.20381772,110140.0,110130.0,0.15624]
[1756178786686,0.20181772,110140.0,110130.0,0.15624]
[1756178787298,0.18160355,110130.0,110120.0,0.25796279]
[1756178787495,0.19011407,110130.0,110120.0,0.23464699]
[1756178787768,0.19212407,110130.0,110120.0,0.23154699]
[1756178787940,0.19212407,110130.0,110120.0,0.22949699]
[1756178789219,0.19212407,110130.0,110120.0,0.1562]
[1756178789667,0.19312407,110130.0,110120.0,0.19699491]
[1756178790070,0.18162005,110120.0,110110.0,0.45612072]
[1756178790320,0.18363005,110120.0,110110.0,0.45306954]
[1756178790525,0.18363005,110120.0,110110.0,0.427593]
[1756178791089,0.18363005,110120.0,110110.0,0.429643]
[1756178791297,0.18363005,110120.0,110110.0,0.61433954]
[1756178791900,0.18363005,110120.0,110110.0,0.432703]
[1756178792323,0.18363005,110120.0,110110.0,0.164003]
[1756178793052,0.3543094,110130.0,110110.0,0.164003]
[1756178793268,0.18348005,110120.0,110110.0,0.164003]
[1756178794199,0.18348005,110120.0,110110.0,0.20511255]
[1756178795895,0.18348005,110120.0,110110.0,0.04895255]
[1756178796074,0.18348005,110120.0,110110.0,0.002733]
[1756178796310,0.19199162,110120.0,110110.0,0.002733]
[1756178796512,0.22046062,110120.0,110110.0,0.002733]
[1756178797018,0.22146062,110120.0,110110.0,0.002733]
[1756178797671,0.22046062,110120.0,110110.0,0.002733]
[1756178797877,0.22246062,110120.0,110110.0,0.002733]
[1756178798082,0.22130062,110120.0,110110.0,0.007843]
[1756178798291,0.21278905,110120.0,110110.0,0.007843]
[1756178798492,0.22130011,110120.0,110110.0,0.007843]
[1756178798722,0.22130011,110120.0,110110.0,0.002733]
[1756178798934,0.22330011,110120.0,110110.0,0.002733]
[1756178802019,0.56446011,110120.0,110110.0,0.002733]
[1756178802255,0.65592213,110120.0,110110.0,0.002733]
[1756178803943,0.67293932,110120.0,110110.0,0.002733]
[1756178804197,0.65592213,110120.0,110110.0,0.002733]
[1756178805346,0.65591766,110120.0,110110.0,0.002733]
[1756178805777,0.64741107,110120.0,110110.0,0.002733]
[1756178805957,0.67292744,110120.0,110110.0,0.002733]
[1756178806159,0.69252476,110120.0,110110.0,0.002733]
[1756178808010,0.76236476,110120.0,110110.0,0.002733]
[1756178808415,0.76036476,110120.0,110110.0,0.002733]
[1756178808636,0.76335924,110120.0,110110.0,0.002733]
[1756178808776,0.76135924,110120.0,110110.0,0.002733]
[1756178809007,0.91731924,110120.0,110110.0,0.002733]
[1756178809268,0.91930577,110120.0,110110.0,0.002733]
[1756178809818,0.76334577,110120.0,110110.0,0.002733]
[1756178810037,0.91814577,110120.0,110110.0,0.002733]
[1756178810405,0.76032577,110120.0,110110.0,0.007843]
[1756178810617,0.87969099,110120.0,110110.0,0.007843]
[1756178811057,0.88155099,110120.0,110110.0,0.007843]
[1756178811745,0.87969099,110120.0,110110.0,0.007843]
[1756178812186,0.88155099,110120.0,110110.0,0.007843]
[1756178814547,0.87965099,110120.0,110110.0,0.007843]
[1756178814895,0.87964933,110120.0,110110.0,0.007843]
[1756178815304,0.72372933,110120.0,110110.0,0.007843]
[1756178815521,0.87964933,110120.0,110110.0,0.007843]
[1756178816261,0.87978933,110120.0,110110.0,0.007843]
[1756178817084,0.87978933,110120.0,110110.0,0.005793]
[1756178817284,0.87978933,110120.0,110110.0,0.007843]
[1756178819171,0.89679993,110120.0,110110.0,0.007843]
[1756178820322,0.91640077,110120.0,110110.0,0.007843]
[1756178821322,0.91640077,110120.0,110110.0,0.005793]
[1756178821765,0.91640077,110120.0,110110.0,0.002733]
[1756178822418,0.91618077,110120.0,110110.0,0.007733]
[1756178822697,0.59903875,110120.0,110110.0,0.007733]
[1756178822919,0.71826731,110120.0,110110.0,0.007733]
[1756178823508,0.7182795,110120.0,110110.0,0.007733]
[1756178824342,0.7162795,110120.0,110110.0,0.007733]
[1756178824551,0.7132795,110120.0,110110.0,0.007733]
[1756178824762,0.7142395,110120.0,110110.0,0.007733]
[1756178824973,0.5594395,110120.0,110110.0,0.007733]
[1756178825193,0.7152395,110120.0,110110.0,0.007733]
[1756178825410,0.5594395,110120.0,110110.0,0.007733]
[1756178825620,0.7152395,110120.0,110110.0,0.007733]
[1756178826472,0.7152395,110120.0,110100.0,0.2451794]
[1756178826680,0.3752395,110120.0,110110.0,0.00205]
[1756178827551,0.3742395,110120.0,110110.0,0.18368654]
[1756178827770,0.3752395,110120.0,110110.0,0.18368654]
[1756178828358,0.3742395,110120.0,110110.0,0.00205]
[1756178828615,0.3752395,110120.0,110110.0,0.005]
[1756178830769,0.3773095,110120.0,110110.0,0.00205]
[1756178830972,0.18165615,110100.0,110080.0,0.40189443]
[1756178831176,0.18163654,110110.0,110090.0,0.43385156]
[1756178831383,0.18163654,110110.0,110090.0,0.43090156]
[1756178831588,0.18163654,110110.0,110100.0,0.00295]
[1756178831801,0.18370654,110110.0,110100.0,0.005]
[1756178832241,0.1837933,110110.0,110100.0,0.00205]
[1756178832461,0.1867833,110110.0,110100.0,0.00205]
[1756178833140,0.18165304,110100.0,110090.0,0.09441202]
[1756178833354,0.18165304,110100.0,110090.0,0.27813156]
[1756178833560,0.18165304,110100.0,110090.0,0.43385156]
[1756178833948,0.18165304,110100.0,110090.0,0.27813156]
[1756178834169,0.18165304,110100.0,110090.0,0.43385156]
[1756178834746,0.18165304,110100.0,110090.0,0.09746202]
[1756178834976,0.18372304,110100.0,110090.0,0.007]
[1756178835178,0.18372304,110100.0,110090.0,0.16268]
[1756178835578,0.18372304,110100.0,110090.0,0.007]
[1756178836790,0.34239304,110100.0,110090.0,0.002]
[1756178837401,0.37822216,110100.0,110090.0,0.002]
[1756178837597,0.71822216,110100.0,110090.0,0.002]
[1756178838016,0.89967873,110100.0,110090.0,0.002]
[1756178838222,0.80968418,110100.0,110090.0,0.002]
[1756178838443,0.84633687,110100.0,110090.0,0.002]
[1756178838887,0.92256224,110100.0,110090.0,0.002]
[1756178839087,0.76687662,110100.0,110090.0,0.001]
[1756178839336,0.76049125,110100.0,110090.0,0.001]
[1756178839559,0.18169212,110080.0,110070.0,0.00295]
[1756178839774,0.18169212,110080.0,110060.0,0.50922228]
[1756178839775,0.18170255,110070.0,110060.0,0.50922228]
[1756178840000,0.18169212,110080.0,110070.0,0.18170255]
[1756178840230,0.19754842,110080.0,110070.0,0.00205]
[1756178840456,0.18170255,110070.0,110060.0,0.32750713]
[1756178840707,0.18170255,110070.0,110060.0,0.52679619]
[1756178840928,0.35111842,110080.0,110060.0,0.48549605]
[1756178841147,8.672e-05,110070.0,110060.0,0.48549605]
[1756178841374,0.18178927,110070.0,110060.0,0.41219906]
[1756178841596,0.18178927,110070.0,110060.0,0.41419906]
[1756178841806,8.672e-05,110070.0,110060.0,0.41419906]
[1756178842241,8.672e-05,110070.0,110060.0,0.41219906]
[1756178842441,8.672e-05,110070.0,110060.0,0.41319906]
[1756178843729,0.18178927,110070.0,110060.0,0.41319906]
[1756178843954,0.18385927,110070.0,110060.0,0.22853]
[1756178844192,0.18385927,110070.0,110060.0,0.23053]
[1756178844411,0.18385927,110070.0,110060.0,0.23348]
[1756178844812,0.18385927,110070.0,110060.0,0.003]
[1756178844813,0.18684927,110070.0,110060.0,0.003]
[1756178845462,0.68244927,110070.0,110060.0,0.003]
[1756178845932,0.70977027,110070.0,110060.0,0.003]
[1756178846551,0.80123229,110070.0,110060.0,0.003]